fUSD/lending_fUSD_20250504
["ID","MTS","AMOUNT","RATE_DAILY","PERIOD"]
[359848608,1746371453002,-402.350291,0.00019899,2]
[359848610,1746371453012,-151.0,0.00019899,2]
[359848612,1746371453023,-151.0,0.00019899,2]
[359848614,1746371453033,-151.0,0.00019899,2]
[359848616,1746371453043,-151.0,0.00019899,2]
[359848618,1746371453053,-151.0,0.00019899,2]
[359848620,1746371453064,-313.625703,0.00019899,2]
[359848623,1746371453074,-313.625703,0.00019899,2]
[359848625,1746371453085,-151.0,0.00019899,2]
[359848627,1746371453095,-151.0,0.00019899,2]
[359848629,1746371453105,-151.0,0.00019899,2]
[359848631,1746371453117,-182.009892,0.00019899,2]
[359848633,1746371453127,-151.0,0.00019899,2]
[359848635,1746371453138,-151.0,0.00019899,2]
[359848637,1746371453148,-151.0,0.00019899,2]
[359848639,1746371453159,-151.0,0.00019899,2]
[359848641,1746371453170,-151.0,0.00019899,2]
[359848650,1746371453330,-470.361025,0.00019899,2]
[359848651,1746371453367,-151.0,0.00019899,2]
[359848652,1746371453378,-470.361025,0.00019899,2]
[359848653,1746371453388,-151.0,0.00019899,2]
[359848654,1746371453398,-151.0,0.00019899,2]
[359848656,1746371453408,-257.898089,0.00019899,2]
[359848658,1746371453418,-264.337109,0.00019899,2]
[359848660,1746371453429,-264.337109,0.00019899,2]
[359848662,1746371453440,-151.0,0.00019899,2]
[359848664,1746371453449,-601.530129,0.00019899,2]
[359848666,1746371453459,-601.530129,0.00019899,2]
[359848668,1746371453468,-209.252006,0.00019899,2]
[359848670,1746371453478,-209.252006,0.00019899,2]
[359848672,1746371453488,-202.270005,0.00019899,2]
[359848674,1746371453497,-202.270005,0.00019899,2]
[359848676,1746371453508,-151.0,0.00019899,2]
[359848678,1746371453519,-151.0,0.00019899,2]
[359848680,1746371453529,-151.0,0.00019899,2]
[359848682,1746371453539,-193.033127,0.00019899,2]
[359848684,1746371453548,-193.033127,0.00019899,2]
[359848686,1746371453558,-151.0,0.00019899,2]
[359848688,1746371453568,-151.0,0.00019899,2]
[359848690,1746371453578,-151.0,0.00019899,2]
[359848692,1746371453588,-239.73894,0.00019899,2]
[359848694,1746371453597,-239.73894,0.00019899,2]
[359848696,1746371453607,-222.941916,0.00019899,2]
[359848698,1746371453616,-151.0,0.00019899,2]
[359848700,1746371453626,-387.50918,0.00019899,2]
[359848702,1746371453635,-387.50918,0.00019899,2]
[359848704,1746371453645,-151.0,0.00019899,2]
[359848706,1746371453655,-152.660699,0.00019899,2]
[359848708,1746371453664,-152.660699,0.00019899,2]
[359848710,1746371453674,-262.077949,0.00019899,2]
[359848712,1746371453683,-262.077949,0.00019899,2]
[359848714,1746371453693,-151.0,0.00019899,2]
[359848716,1746371453702,-180.07936959,0.00019899,2]
[359848718,1746371453712,-500.0,0.00019899,2]
[359848720,1746371453721,-500.0,0.00019899,2]
[359848722,1746371453731,-500.0,0.00019899,2]
[359848724,1746371453740,-500.0,0.00019899,2]
[359848726,1746371453750,-500.0,0.00019899,2]
[359848728,1746371453759,-500.0,0.00019899,2]
[359848730,1746371453768,-198.0,0.000199,2]
[359848732,1746371453778,-198.0,0.000199,2]
[359848734,1746371453788,-54868.98190497,0.000199,2]
[359848736,1746371453797,-12500.0,0.000199,2]
[359848738,1746371453806,-10836.58,0.000199,2]
[359848740,1746371453816,-12500.0,0.000199,2]
[359848742,1746371453825,-46298.82,0.000199,2]
[359848744,1746371453835,-151.0,0.000199,2]
[359848746,1746371453844,-151.0,0.000199,2]
[359848748,1746371453854,-12500.0,0.000199,2]
[359848750,1746371453863,-151.0,0.000199,2]
[359848752,1746371453872,-151.0,0.000199,2]
[359848754,1746371453882,-151.0,0.000199,2]
[359848756,1746371453891,-151.0,0.000199,2]
[359848758,1746371453901,-12500.0,0.000199,2]
[359848760,1746371453911,-250.947675,0.000199,2]
[359848762,1746371453921,-250.947675,0.000199,2]
[359848764,1746371453931,-209.975492,0.000199,2]
[359848766,1746371453941,-209.975492,0.000199,2]
[359848768,1746371453950,-402.350291,0.000199,2]
[359848770,1746371453960,-402.350291,0.000199,2]
[359848772,1746371453969,-151.0,0.000199,2]
[359848773,1746371453978,-151.0,0.000199,2]
[359848776,1746371453990,-151.0,0.000199,2]
[359848777,1746371454000,-151.0,0.000199,2]
[359848779,1746371454009,-151.0,0.000199,2]
[359848782,1746371454019,-313.625703,0.000199,2]
[359848783,1746371454029,-313.625703,0.000199,2]
[359848786,1746371454038,-151.0,0.000199,2]
[359848788,1746371454048,-151.0,0.000199,2]
[359848790,1746371454058,-151.0,0.000199,2]
[359848792,1746371454068,-151.0,0.000199,2]
[359848794,1746371454077,-215.173716,0.000199,2]
[359848796,1746371454087,-151.0,0.000199,2]
[359848797,1746371454096,-470.361025,0.000199,2]
[359848798,1746371454106,-151.0,0.000199,2]
[359848800,1746371454115,-470.361025,0.000199,2]
[359848802,1746371454125,-151.0,0.000199,2]
[359848804,1746371454134,-151.0,0.000199,2]
[359848806,1746371454144,-158.218043,0.000199,2]
[359848808,1746371454153,-264.337109,0.000199,2]
[359848810,1746371454162,-264.337109,0.000199,2]
[359848812,1746371454171,-12500.0,0.000199,2]
[359848813,1746371454181,-151.0,0.000199,2]
[359848815,1746371454190,-601.530129,0.000199,2]
[359848817,1746371454199,-601.530129,0.000199,2]
[359848819,1746371454208,-209.252006,0.000199,2]
[359848821,1746371454218,-209.252006,0.000199,2]
[359848823,1746371454227,-202.270005,0.000199,2]
[359848825,1746371454236,-202.270005,0.000199,2]
[359848827,1746371454246,-151.0,0.000199,2]
[359848829,1746371454256,-151.0,0.000199,2]
[359848831,1746371454266,-255.288366,0.000199,2]
[359848833,1746371454275,-193.033127,0.000199,2]
[359848835,1746371454284,-193.033127,0.000199,2]
[359848836,1746371454295,-151.0,0.000199,2]
[359848837,1746371454304,-151.0,0.000199,2]
[359848838,1746371454314,-151.0,0.000199,2]
[359848839,1746371454324,-168.88878199,0.000199,2]
[359848840,1746371454335,-239.73894,0.000199,2]
[359848841,1746371454344,-239.73894,0.000199,2]
[359848842,1746371454354,-151.0,0.000199,2]
[359848843,1746371454363,-387.50918,0.000199,2]
[359848844,1746371454373,-387.50918,0.000199,2]
[359848845,1746371454383,-151.0,0.000199,2]
[359848846,1746371454393,-152.660699,0.000199,2]
[359848847,1746371454402,-152.660699,0.000199,2]
[359848848,1746371454412,-262.077949,0.000199,2]
[359848849,1746371454421,-262.077949,0.000199,2]
[359848850,1746371454433,-151.0,0.000199,2]
[359848851,1746371454444,-156.63736672,0.000199,2]
[359848852,1746371454455,-9393.99946708,0.000199,2]
[359848853,1746371454465,-177.61409827,0.000199,2]
[359848854,1746371454477,-150.0,0.00019903,2]
[359848855,1746371454488,-150.0,0.00019905,2]
[359848856,1746371454498,-150.0,0.00019909,2]
[359848857,1746371454510,-150.0,0.00019913,2]
[359848858,1746371454520,-535.1003832,0.00019916,2]
[359848859,1746371454530,-150.0,0.00019917,2]
[359848860,1746371454539,-150.0,0.00019917,2]
[359848861,1746371454549,-925.0,0.00019917,2]
[359848862,1746371454558,-1300.0,0.00019917,2]
[359848863,1746371454568,-151.0,0.00019917,2]
[359848864,1746371454578,-151.0,0.00019917,2]
[359848865,1746371454587,-151.0,0.00019917,2]
[359848866,1746371454596,-151.0,0.00019917,2]
[359848867,1746371454607,-151.0,0.00019917,2]
[359848868,1746371454616,-462.73,0.00019917,2]
[359848869,1746371454626,-450.0,0.00019917,2]
[359848870,1746371454636,-476.54,0.00019917,2]
[359848871,1746371454645,-478.04,0.00019917,2]
[359848872,1746371454655,-450.0,0.00019917,2]
[359848873,1746371454664,-1166.68,0.00019917,2]
[359848874,1746371454675,-450.0,0.00019917,2]
[359848875,1746371454685,-450.0,0.00019917,2]
[359848876,1746371454695,-721.57,0.00019917,2]
[359848877,1746371454704,-450.0,0.00019917,2]
[359848878,1746371454713,-450.0,0.00019917,2]
[359848879,1746371454723,-948.05,0.00019917,2]
[359848880,1746371454731,-450.0,0.00019917,2]
[359848881,1746371454741,-659.42,0.00019917,2]
[359848882,1746371454751,-17179.62,0.00019917,2]
[359848883,1746371454760,-450.0,0.00019917,2]
[359848884,1746371454770,-852.95,0.00019917,2]
[359848885,1746371454779,-450.0,0.00019917,2]
[359848886,1746371454788,-3750.44,0.00019917,2]
[359848887,1746371454798,-450.0,0.00019917,2]
[359848888,1746371454808,-450.0,0.00019917,2]
[359848889,1746371454817,-450.0,0.00019917,2]
[359848890,1746371454826,-2709.22,0.00019917,2]
[359848891,1746371454836,-450.0,0.00019917,2]
[359848892,1746371454845,-875.32,0.00019917,2]
[359848893,1746371454855,-450.0,0.00019917,2]
[359848894,1746371454864,-527.66,0.00019917,2]
[359848895,1746371454874,-450.0,0.00019917,2]
[359848896,1746371454883,-30743.51,0.00019917,2]
[359848897,1746371454893,-610.51,0.00019917,2]
[359848898,1746371454903,-574.65,0.00019917,2]
[359848899,1746371454912,-931.48,0.00019917,2]
[359848900,1746371454922,-1190.44,0.00019917,2]
[359848901,1746371454931,-450.0,0.00019917,2]
[359848902,1746371454941,-450.0,0.00019917,2]
[359848903,1746371454950,-450.0,0.00019917,2]
[359848904,1746371454960,-450.0,0.00019917,2]
[359848905,1746371454969,-150.0,0.00019918,2]
[359848906,1746371454979,-150.0,0.00019918,2]
[359848907,1746371454988,-150.0,0.00019919,2]
[359848908,1746371454997,-150.0,0.00019919,2]
[359848909,1746371455007,-150.0,0.0001992,2]
[359848910,1746371455017,-150.0,0.00019924,2]
[359848911,1746371455026,-150.0,0.00019924,2]
[359848912,1746371455035,-150.0,0.00019924,2]
[359848913,1746371455044,-150.0,0.0001993,2]
[359848914,1746371455054,-150.0,0.00019931,2]
[359848915,1746371455063,-150.0,0.00019931,2]
[359848916,1746371455072,-150.0,0.00019933,2]
[359848917,1746371455082,-150.0,0.00019934,2]
[359848918,1746371455091,-150.0,0.00019935,2]
[359848919,1746371455100,-150.0,0.00019937,2]
[359848920,1746371455109,-150.0,0.00019938,2]
[359848921,1746371455119,-150.0,0.00019942,2]
[359848922,1746371455128,-500.0,0.00019944,2]
[359848923,1746371455138,-151.0,0.00019945,2]
[359848924,1746371455148,-151.0,0.00019945,2]
[359848925,1746371455157,-250.947675,0.00019945,2]
[359848926,1746371455166,-250.947675,0.00019945,2]
[359848927,1746371455175,-209.975492,0.00019945,2]
[359848928,1746371455185,-209.975492,0.00019945,2]
[359848929,1746371455194,-402.350291,0.00019945,2]
[359848930,1746371455204,-402.350291,0.00019945,2]
[359848931,1746371455213,-151.0,0.00019945,2]
[359848932,1746371455222,-280.317385,0.00019945,2]
[359848933,1746371455231,-151.0,0.00019945,2]
[359848934,1746371455241,-462.73,0.00019945,2]
[359848935,1746371455250,-450.0,0.00019945,2]
[359848936,1746371455260,-476.54,0.00019945,2]
[359848937,1746371455269,-313.625703,0.00019945,2]
[359848938,1746371455278,-313.625703,0.00019945,2]
[359848939,1746371455287,-478.04,0.00019945,2]
[359848940,1746371455297,-450.0,0.00019945,2]
[359848941,1746371455307,-151.0,0.00019945,2]
[359848942,1746371455316,-151.0,0.00019945,2]
[359848943,1746371455326,-1166.68,0.00019945,2]
[359848944,1746371455335,-151.0,0.00019945,2]
[359848945,1746371455345,-151.0,0.00019945,2]
[359848946,1746371455355,-450.0,0.00019945,2]
[359848947,1746371455364,-161.252723,0.00019945,2]
[359848948,1746371455374,-470.361025,0.00019945,2]
[359848949,1746371455383,-151.0,0.00019945,2]
[359848950,1746371455393,-470.361025,0.00019945,2]
[359848951,1746371455402,-299.548091,0.00019945,2]
[359848952,1746371455412,-151.0,0.00019945,2]
[359848953,1746371455422,-158.218043,0.00019945,2]
[359848954,1746371455433,-264.337109,0.00019945,2]
[359848955,1746371455442,-264.337109,0.00019945,2]
[359848956,1746371455451,-601.530129,0.00019945,2]
[359848957,1746371455460,-601.530129,0.00019945,2]
[359848958,1746371455469,-209.252006,0.00019945,2]
[359848959,1746371455478,-450.0,0.00019945,2]
[359848960,1746371455487,-209.252006,0.00019945,2]
[359848961,1746371455496,-202.270005,0.00019945,2]
[359848962,1746371455506,-202.270005,0.00019945,2]
[359848963,1746371455515,-721.57,0.00019945,2]
[359848964,1746371455525,-151.0,0.00019945,2]
[359848965,1746371455535,-151.0,0.00019945,2]
[359848966,1746371455544,-450.0,0.00019945,2]
[359848967,1746371455554,-450.0,0.00019945,2]
[359848968,1746371455563,-948.05,0.00019945,2]
[359848969,1746371455572,-659.42,0.00019945,2]
[359848970,1746371455587,-450.0,0.00019945,2]
[359848971,1746371455601,-17179.62,0.00019945,2]
[359848972,1746371455611,-193.033127,0.00019945,2]
[359848973,1746371455620,-450.0,0.00019945,2]
[359848974,1746371455630,-852.95,0.00019945,2]
[359848975,1746371455639,-193.033127,0.00019945,2]
[359848976,1746371455649,-450.0,0.00019945,2]
[359848977,1746371455698,-3750.44,0.00019945,2]
[359848978,1746371455708,-450.0,0.00019945,2]
[359848979,1746371455717,-450.0,0.00019945,2]
[359848980,1746371455726,-450.0,0.00019945,2]
[359848981,1746371455735,-2709.22,0.00019945,2]
[359848982,1746371455745,-151.0,0.00019945,2]
[359848983,1746371455754,-151.0,0.00019945,2]
[359848984,1746371455763,-269.766856,0.00019945,2]
[359848985,1746371455772,-239.73894,0.00019945,2]
[359848986,1746371455781,-239.73894,0.00019945,2]
[359848987,1746371455791,-450.0,0.00019945,2]
[359848988,1746371455800,-875.32,0.00019945,2]
[359848989,1746371455810,-450.0,0.00019945,2]
[359848990,1746371455819,-527.66,0.00019945,2]
[359848991,1746371455828,-450.0,0.00019945,2]
[359848992,1746371455837,-30743.51,0.00019945,2]
[359848993,1746371455846,-610.51,0.00019945,2]
[359848994,1746371455856,-151.0,0.00019945,2]
[359848995,1746371455865,-387.50918,0.00019945,2]
[359848996,1746371455874,-387.50918,0.00019945,2]
[359848997,1746371455883,-574.65,0.00019945,2]
[359848998,1746371455893,-931.48,0.00019945,2]
[359848999,1746371455902,-151.0,0.00019945,2]
[359849000,1746371455911,-1190.44,0.00019945,2]
[359849001,1746371455920,-152.660699,0.00019945,2]
[359849002,1746371455929,-152.660699,0.00019945,2]
[359849003,1746371455939,-262.077949,0.00019945,2]
[359849004,1746371455948,-450.0,0.00019945,2]
[359849005,1746371455958,-262.077949,0.00019945,2]
[359849006,1746371455967,-151.0,0.00019945,2]
[359849007,1746371455977,-450.0,0.00019945,2]
[359849008,1746371455986,-450.0,0.00019945,2]
[359849009,1746371455995,-450.0,0.00019945,2]
[359849010,1746371456004,-150.0,0.00019946,2]
[359849011,1746371456014,-150.0,0.00019948,2]
[359849012,1746371456023,-150.0,0.00019948,2]
[359849013,1746371456032,-150.0,0.00019949,2]
[359849014,1746371456041,-150.0,0.00019957,2]
[359849015,1746371456051,-150.0,0.00019959,2]
[359849016,1746371456061,-150.0,0.00019965,2]
[359849017,1746371456073,-500.0,0.00019971,2]
[359849018,1746371456084,-151.0,0.00019972,2]
[359849019,1746371456094,-151.0,0.00019972,2]
[359849020,1746371456103,-151.0,0.00019972,2]
[359849021,1746371456112,-151.0,0.00019972,2]
[359849022,1746371456122,-151.0,0.00019972,2]
[359849023,1746371456131,-462.73,0.00019972,2]
[359849024,1746371456140,-450.0,0.00019972,2]
[359849025,1746371456150,-476.54,0.00019972,2]
[359849026,1746371456160,-478.04,0.00019972,2]
[359849027,1746371456169,-546.15363985,0.00019972,2]
[359849028,1746371456179,-1166.68,0.00019972,2]
[359849029,1746371456188,-450.0,0.00019972,2]
[359849030,1746371456198,-450.0,0.00019972,2]
[359849031,1746371456208,-721.57,0.00019972,2]
[359849032,1746371456217,-151.0,0.00019972,2]
[359849033,1746371456227,-450.0,0.00019972,2]
[359849034,1746371456236,-450.0,0.00019972,2]
[359849035,1746371456246,-948.05,0.00019972,2]
[359849036,1746371456255,-659.42,0.00019972,2]
[359849037,1746371456264,-450.0,0.00019972,2]
[359849038,1746371456274,-17179.62,0.00019972,2]
[359849039,1746371456283,-193.033127,0.00019972,2]
[359849040,1746371456292,-530.52122037,0.00019972,2]
[359849041,1746371456302,-852.95,0.00019972,2]
[359849042,1746371456312,-193.033127,0.00019972,2]
[359849043,1746371456322,-450.0,0.00019972,2]
[359849044,1746371456331,-3750.44,0.00019972,2]
[359849045,1746371456341,-450.0,0.00019972,2]
[359849046,1746371456351,-450.0,0.00019972,2]
[359849047,1746371456360,-450.0,0.00019972,2]
[359849048,1746371456369,-2709.22,0.00019972,2]
[359849049,1746371456379,-151.0,0.00019972,2]
[359849050,1746371456388,-151.0,0.00019972,2]
[359849051,1746371456397,-239.73894,0.00019972,2]
[359849052,1746371456406,-239.73894,0.00019972,2]
[359849053,1746371456416,-450.0,0.00019972,2]
[359849054,1746371456426,-875.32,0.00019972,2]
[359849055,1746371456438,-262.22850737,0.00019972,2]
[359849056,1746371456448,-527.66,0.00019972,2]
[359849057,1746371456457,-450.0,0.00019972,2]
[359849058,1746371456467,-30743.51,0.00019972,2]
[359849059,1746371456478,-610.51,0.00019972,2]
[359849060,1746371456488,-387.50918,0.00019972,2]
[359849061,1746371456497,-387.50918,0.00019972,2]
[359849062,1746371456508,-574.65,0.00019972,2]
[359849063,1746371456518,-931.48,0.00019972,2]
[359849064,1746371456527,-151.0,0.00019972,2]
[359849065,1746371456537,-1190.44,0.00019972,2]
[359849066,1746371456546,-450.0,0.00019972,2]
[359849067,1746371456556,-450.0,0.00019972,2]
[359849068,1746371456566,-450.0,0.00019972,2]
[359849069,1746371456575,-450.0,0.00019972,2]
[359849070,1746371456584,-300.0,0.00019973,2]
[359849071,1746371456594,-150.0,0.00019975,2]
[359849072,1746371456604,-150.0,0.00019975,2]
[359849073,1746371456613,-150.0,0.0001998,2]
[359849074,1746371456623,-150.0,0.00019983,2]
[359849075,1746371456632,-229.39847776,0.00019985,2]
[359849076,1746371456641,-150.0,0.00019985,2]
[359849077,1746371456651,-244.12552629,0.00019985,2]
[359849078,1746371456660,-500.0,0.00019985,2]
[359849079,1746371456669,-500.0,0.00019985,2]
[359849080,1746371456678,-500.0,0.00019985,2]
[359849081,1746371456687,-500.0,0.00019985,2]
[359849082,1746371456697,-151.0,0.00019986,2]
[359849083,1746371456706,-151.0,0.00019986,2]
[359849084,1746371456715,-151.0,0.00019986,2]
[359849085,1746371456725,-151.0,0.00019986,2]
[359849086,1746371456734,-151.0,0.00019986,2]
[359849087,1746371456743,-151.0,0.00019986,2]
[359849088,1746371456752,-151.0,0.00019986,2]
[359849089,1746371456761,-151.0,0.00019986,2]
[359849090,1746371456770,-151.0,0.00019986,2]
[359849091,1746371456779,-196.805588,0.00019986,2]
[359849092,1746371456789,-151.0,0.00019986,2]
[359849093,1746371456798,-267.18987,0.00019986,2]
[359849094,1746371456808,-250.947675,0.00019986,2]
[359849095,1746371456817,-250.947675,0.00019986,2]
[359849096,1746371456826,-250.947675,0.00019986,2]
[359849097,1746371456835,-250.947675,0.00019986,2]
[359849098,1746371456845,-250.947675,0.00019986,2]
[359849099,1746371456854,-250.947667,0.00019986,2]
[359849100,1746371456864,-209.975492,0.00019986,2]
[359849101,1746371456873,-209.975492,0.00019986,2]
[359849102,1746371456882,-209.975492,0.00019986,2]
[359849103,1746371456892,-209.975492,0.00019986,2]
[359849104,1746371456901,-209.975492,0.00019986,2]
[359849105,1746371456910,-209.975482,0.00019986,2]
[359849106,1746371456919,-402.350291,0.00019986,2]
[359849107,1746371456929,-402.350291,0.00019986,2]
[359849108,1746371456938,-402.350291,0.00019986,2]
[359849109,1746371456948,-402.350291,0.00019986,2]
[359849110,1746371456957,-402.350291,0.00019986,2]
[359849111,1746371456966,-402.350289,0.00019986,2]
[359849112,1746371456975,-151.0,0.00019986,2]
[359849113,1746371456984,-151.0,0.00019986,2]
[359849114,1746371456993,-151.0,0.00019986,2]
[359849115,1746371457003,-151.0,0.00019986,2]
[359849116,1746371457012,-151.0,0.00019986,2]
[359849117,1746371457021,-151.0,0.00019986,2]
[359849118,1746371457030,-151.0,0.00019986,2]
[359849119,1746371457039,-151.0,0.00019986,2]
[359849120,1746371457049,-313.625703,0.00019986,2]
[359849121,1746371457058,-313.625703,0.00019986,2]
[359849122,1746371457068,-313.625703,0.00019986,2]
[359849123,1746371457078,-313.625703,0.00019986,2]
[359849124,1746371457087,-313.625703,0.00019986,2]
[359849125,1746371457099,-313.625703,0.00019986,2]
[359849126,1746371457108,-313.625703,0.00019986,2]
[359849127,1746371457118,-313.625711,0.00019986,2]
[359849128,1746371457127,-151.0,0.00019986,2]
[359849129,1746371457136,-151.0,0.00019986,2]
[359849130,1746371457146,-151.0,0.00019986,2]
[359849131,1746371457155,-151.0,0.00019986,2]
[359849132,1746371457164,-151.0,0.00019986,2]
[359849133,1746371457173,-151.0,0.00019986,2]
[359849134,1746371457182,-151.0,0.00019986,2]
[359849135,1746371457192,-151.0,0.00019986,2]
[359849136,1746371457201,-151.0,0.00019986,2]
[359849137,1746371457210,-151.0,0.00019986,2]
[359849138,1746371457220,-151.0,0.00019986,2]
[359849139,1746371457229,-470.361025,0.00019986,2]
[359849140,1746371457239,-151.0,0.00019986,2]
[359849141,1746371457248,-470.361025,0.00019986,2]
[359849142,1746371457257,-151.0,0.00019986,2]
[359849143,1746371457266,-470.361025,0.00019986,2]
[359849144,1746371457275,-151.0,0.00019986,2]
[359849145,1746371457284,-470.361025,0.00019986,2]
[359849146,1746371457293,-470.361025,0.00019986,2]
[359849147,1746371457302,-470.361025,0.00019986,2]
[359849148,1746371457312,-470.361025,0.00019986,2]
[359849149,1746371457322,-470.36102397,0.00019986,2]
[359849150,1746371457331,-151.0,0.00019986,2]
[359849151,1746371457340,-151.0,0.00019986,2]
[359849152,1746371457349,-151.0,0.00019986,2]
[359849153,1746371457358,-158.218043,0.00019986,2]
[359849154,1746371457367,-158.218043,0.00019986,2]
[359849155,1746371457377,-158.218047,0.00019986,2]
[359849156,1746371457386,-15103.0980615,0.00019986,2]
[359849157,1746371457395,-14294.1622618,0.00019986,2]
[359849158,1746371457405,-13485.2264622,0.00019986,2]
[359849159,1746371457414,-12676.2906625,0.00019986,2]
[359849160,1746371457423,-264.337109,0.00019986,2]
[359849161,1746371457437,-264.337109,0.00019986,2]
[359849162,1746371457446,-264.337109,0.00019986,2]
[359849163,1746371457456,-264.337109,0.00019986,2]
[359849164,1746371457466,-264.337109,0.00019986,2]
[359849165,1746371457477,-264.337115,0.00019986,2]
[359849166,1746371457486,-601.530129,0.00019986,2]
[359849167,1746371457495,-601.530129,0.00019986,2]
[359849168,1746371457506,-601.530129,0.00019986,2]
[359849169,1746371457515,-601.530129,0.00019986,2]
[359849170,1746371457525,-601.530129,0.00019986,2]
[359849171,1746371457534,-601.530129,0.00019986,2]
[359849172,1746371457544,-5394.8480694,0.00019986,2]
[359849173,1746371457554,-5105.8950533,0.00019986,2]
[359849174,1746371457563,-4816.9420372,0.00019986,2]
[359849175,1746371457573,-4527.9890211,0.00019986,2]
[359849176,1746371457583,-209.252006,0.00019986,2]
[359849177,1746371457593,-209.252006,0.00019986,2]
[359849178,1746371457603,-209.252006,0.00019986,2]
[359849179,1746371457613,-209.252014,0.00019986,2]
[359849180,1746371457622,-202.270005,0.00019986,2]
[359849181,1746371457631,-202.270005,0.00019986,2]
[359849182,1746371457641,-202.270005,0.00019986,2]
[359849183,1746371457651,-202.270005,0.00019986,2]
[359849184,1746371457660,-202.270005,0.00019986,2]
[359849185,1746371457669,-202.270006,0.00019986,2]
[359849186,1746371457679,-151.0,0.00019986,2]
[359849187,1746371457689,-151.0,0.00019986,2]
[359849188,1746371457699,-193.033127,0.00019986,2]
[359849189,1746371457708,-193.033127,0.00019986,2]
[359849190,1746371457717,-193.033127,0.00019986,2]
[359849191,1746371457727,-193.03313,0.00019986,2]
[359849192,1746371457736,-151.0,0.00019986,2]
[359849193,1746371457745,-151.0,0.00019986,2]
[359849194,1746371457755,-151.0,0.00019986,2]
[359849195,1746371457764,-239.73894,0.00019986,2]
[359849196,1746371457774,-239.73894,0.00019986,2]
[359849197,1746371457784,-151.0,0.00019986,2]
[359849198,1746371457793,-151.0,0.00019986,2]
[359849199,1746371457803,-387.50918,0.00019986,2]
[359849200,1746371457812,-387.509184,0.00019986,2]
[359849201,1746371457822,-45594.05,0.00019986,2]
[359849202,1746371457832,-47431.35,0.00019986,2]
[359849203,1746371457842,-49268.6499999,0.00019986,2]
[359849204,1746371457851,-51105.9499999,0.00019986,2]
[359849205,1746371457861,-233.117692,0.00019986,2]
[359849206,1746371457870,-152.660699,0.00019986,2]
[359849207,1746371457880,-152.660699,0.00019986,2]
[359849208,1746371457889,-152.660699,0.00019986,2]
[359849209,1746371457899,-152.660703,0.00019986,2]
[359849210,1746371457908,-262.077949,0.00019986,2]
[359849211,1746371457918,-262.077949,0.00019986,2]
[359849212,1746371457928,-262.077949,0.00019986,2]
[359849213,1746371457938,-265.83242,0.00019986,2]
[359849214,1746371457948,-262.077952,0.00019986,2]
[359849215,1746371457959,-150.0,0.00019988,2]
[359849216,1746371457968,-150.0,0.00019989,2]
[359849217,1746371457978,-150.0,0.0001999,2]
[359849218,1746371457987,-150.0,0.0001999,2]
[359849219,1746371457996,-177.75879269,0.0001999,2]
[359849220,1746371458006,-150.0,0.00019991,2]
[359849221,1746371458016,-150.0,0.00019993,2]